[Event "EYCC Open-U16 2019"]
[Site "Bratislava"]
[Date "2019.08.04"]
[Round "3.33"]
[White "Risteski, Emil"]
[Black "Vujovic, Savo"]
[Result "1-0"]
[ECO "C50"]
[WhiteElo "2150"]
[BlackElo "2023"]
[Annotator "NA"]
[PlyCount "75"]
[EventDate "2019.08.02"]
[EventType "swiss"]
[EventCountry "SVK"]
[SourceTitle "playchess.com"]
[Source "ChessBase"]
[SourceQuality "1"]
[TimeControl "40/5400+30:1800+30"]

1. e4 {[%emt 0:00:00]} e5 {[%emt 0:00:00]} 2. Nf3 {[%emt 0:00:00]} Nc6 {[%emt 0:00:00]} 3. Bc4 {[%emt 0:01:40]} Bc5 {[%emt 0:00:00]} 4. O-O {[%emt 0:02:34]} Nf6 {[%emt 0:00:25]} 5. d4 {[%emt 0:00:11]} Bxd4 {[%emt 0:00:08]} 6. Nxd4 {[%emt 0:00:04]} Nxd4 {[%emt 0:00:04]} 7. f4 {[%emt 0:00:03]} d6 {[%emt 0:00:05]} 8. fxe5 {[%emt 0:00:02]} dxe5 {[%emt 0:00:04]} 9. Bg5 {[%emt 0:00:03]} Qe7 {[%emt 0:00:17]} 10. Na3 {[%emt 0:01:44]} Ne6 {[%emt 0:03:41]} 11. Bxf6 {[%emt 0:01:34]} gxf6 {[%emt 0:00:13]} 12. Kh1 {[%emt 0:02:40]} h5 {[%emt 0:11:27]} 13. Qf3 {[%emt 0:14:40]} Rh6 {[%emt 0:04:17]} 14. Rf2 {[%emt 0:13:20]} Bd7 {[%emt 0:11:31]} 15. c3 {[%emt 0:08:11]} Nf4 {[%emt 0:10:55]} 16. Qe3 {[%emt 0:02:36]} Rg6 {[%emt 0:06:56]} 17. Nc2 {[%emt 0:06:35]} Be6 {[%emt 0:06:09]} 18. Bf1 {[%emt 0:02:07]} h4 {[%emt 0:01:25]} 19. Ne1 {[%emt 0:08:50]} Qd6 {[%emt 0:16:40]} 20. Nf3 {[%emt 0:00:16]} Qb6 {[%emt 0:05:24]} 21. Qxb6 {[%emt 0:01:23]} axb6 {[%emt 0:01:48]} 22. Nxh4 {[%emt 0:01:14]} Rg4 {[%emt 0:00:32]} 23. g3 {[%emt 0:01:20]} Rxa2 {[%emt 0:00:51]} 24. Rxa2 {[%emt 0:00:43]} Bxa2 {[%emt 0:00:06]} 25. Nf5 {[%emt 0:04:24]} Ne6 {[%emt 0:00:28]} 26. Bg2 {[%emt 0:00:07]} Bb1 {[%emt 0:07:47]} 27. Ne3 {[%emt 0:01:29]} Rxe4 {[%emt 0:01:25]} 28. Bxe4 {[%emt 0:00:21]} Bxe4+ {[%emt 0:00:01]} 29. Kg1 {[%emt 0:03:05]} f5 {[%emt 0:00:19]} 30. h4 {[%emt 0:08:52]} f4 {[%emt 0:00:11]} 31. gxf4 {[%emt 0:00:14]} Nxf4 {[%emt 0:00:06]} 32. Rh2 {[%emt 0:00:04]} Bf3 {[%emt 0:01:26]} 33. Kf2 {[%emt 0:03:17]} e4 {[%emt 0:00:46]} 34. Nf5 {[%emt 0:00:47]} Kd7 {[%emt 0:01:23]} 35. Ng3 {[%emt 0:02:25]} Nd5 {[%emt 0:02:07]} 36. h5 {[%emt 0:01:48]} Nf6 {[%emt 0:00:21]} 37. h6 {[%emt 0:01:26]} Ng4+ {[%emt 0:00:35]} 38. Ke1 {[%emt 0:00:51]} 1-0

[Event "EYCC Open-U16 2019"]
[Site "Bratislava"]
[Date "2019.08.04"]
[Round "3.34"]
[White "Karadzhov, Ivan"]
[Black "Koziorowicz, Michal"]
[Result "1/2-1/2"]
[ECO "A85"]
[WhiteElo "2023"]
[BlackElo "1985"]
[Annotator "NA"]
[PlyCount "133"]
[EventDate "2019.08.02"]
[EventType "swiss"]
[EventCountry "SVK"]
[SourceTitle "playchess.com"]
[Source "ChessBase"]
[SourceQuality "1"]
[TimeControl "40/5400+30:1800+30"]

1. d4 {[%emt 0:00:00]} f5 {[%emt 0:00:00]} 2. c4 {[%emt 0:02:02]} Nf6 {[%emt 0:00:00]} 3. Nc3 {[%emt 0:00:06]} e6 {[%emt 0:00:01]} 4. Nf3 {[%emt 0:03:08]} Be7 {[%emt 0:00:37]} 5. g3 {[%emt 0:07:03]} O-O {[%emt 0:00:26]} 6. Bg2 {[%emt 0:00:19]} d6 {[%emt 0:00:23]} 7. O-O {[%emt 0:00:34]} Ne4 {[%emt 0:00:55]} 8. Qc2 {[%emt 0:01:57]} Nxc3 {[%emt 0:00:11]} 9. bxc3 {[%emt 0:00:39]} Nc6 {[%emt 0:00:15]} 10. e4 {[%emt 0:09:52]} e5 {[%emt 0:00:55]} 11. exf5 {[%emt 0:06:39]} Bxf5 {[%emt 0:01:02]} 12. Qb3 {[%emt 0:02:28]} Qd7 {[%emt 0:12:40]} 13. c5+ {[%emt 0:06:18]} Kh8 {[%emt 0:14:29]} 14. cxd6 {[%emt 0:03:50]} cxd6 {[%emt 0:05:00]} 15. Be3 {[%emt 0:03:26]} Rac8 {[%emt 0:12:33]} 16. dxe5 {[%emt 0:05:00]} dxe5 {[%emt 0:01:05]} 17. Ng5 {[%emt 0:04:36]} Bxg5 {[%emt 0:07:38]} 18. Bxg5 {[%emt 0:01:51]} Bd3 {[%emt 0:01:20]} 19. Rfe1 {[%emt 0:07:18]} e4 {[%emt 0:05:06]} 20. Bf4 {[%emt 0:03:22]} Rfe8 {[%emt 0:07:43]} 21. Rad1 {[%emt 0:02:11]} Na5 {[%emt 0:00:17]} 22. Qb4 {[%emt 0:02:00]} Qf5 {[%emt 0:00:46]} 23. Bh3 {[%emt 0:08:24]} Qxh3 {[%emt 0:00:33]} 24. Qxa5 {[%emt 0:00:04]} a6 {[%emt 0:01:32]} 25. Qb6 {[%emt 0:04:52]} Qd7 {[%emt 0:02:00]} 26. Qd4 {[%emt 0:02:06]} Qf7 {[%emt 0:01:54]} 27. f3 {[%emt 0:02:21]} Red8 {[%emt 0:03:13]} 28. Qe3 {[%emt 0:01:06]} Qxa2 {[%emt 0:03:03]} 29. Rd2 {[%emt 0:04:00]} Qb3 {[%emt 0:05:39]} 30. fxe4 {[%emt 0:00:57]} Bb5 {[%emt 0:00:39]} 31. Be5 {[%emt 0:01:32]} Rxd2 {[%emt 0:02:51]} 32. Qxd2 {[%emt 0:00:05]} Qf7 {[%emt 0:01:01]} 33. Qd4 {[%emt 0:02:10]} Rf8 {[%emt 0:03:42]} 34. Bd6 {[%emt 0:00:40]} Re8 {[%emt 0:00:46]} 35. e5 {[%emt 0:01:10]} Qf3 {[%emt 0:01:34]} 36. Qe3 {[%emt 0:02:09]} Qd5 {[%emt 0:03:13]} 37. Qe4 {[%emt 0:00:48]} Qa2 {[%emt 0:01:21]} 38. Qxb7 {[%emt 0:01:07]} Qd2 {[%emt 0:00:20]} 39. Qe4 {[%emt 0:00:32]} Qxc3 {[%emt 0:00:13]} 40. Qe3 {[%emt 0:00:00]} Qc6 {[%emt 0:00:00]} 41. h4 {[%emt 0:09:43]} Qd5 {[%emt 0:12:26]} 42. Qf2 {[%emt 0:00:33]} h6 {[%emt 0:03:53]} 43. Rc1 {[%emt 0:05:32]} Qe6 {[%emt 0:06:06]} 44. Kh2 {[%emt 0:00:44]} Bd7 {[%emt 0:00:47]} 45. Qg2 {[%emt 0:02:54]} a5 {[%emt 0:02:45]} 46. Rc3 {[%emt 0:03:30]} a4 {[%emt 0:01:06]} 47. Kg1 {[%emt 0:01:23]} Qg4 {[%emt 0:00:42]} 48. Qf3 {[%emt 0:03:35]} Qd4+ {[%emt 0:00:34]} 49. Qe3 {[%emt 0:01:12]} Qd1+ {[%emt 0:00:39]} 50. Kh2 {[%emt 0:00:31]} Qd5 {[%emt 0:02:40]} 51. Qd3 {[%emt 0:00:45]} Qe6 {[%emt 0:02:00]} 52. Qc2 {[%emt 0:01:18]} Rc8 {[%emt 0:01:38]} 53. Rxc8+ {[%emt 0:01:02]} Bxc8 {[%emt 0:00:01]} 54. Qc3 {[%emt 0:04:51]} Qh3+ {[%emt 0:02:26]} 55. Kg1 {[%emt 0:00:08]} Bb7 {[%emt 0:00:06]} 56. Kf2 {[%emt 0:00:31]} Qf5+ {[%emt 0:01:13]} 57. Ke3 {[%emt 0:00:28]} Qe4+ {[%emt 0:00:34]} 58. Kd2 {[%emt 0:00:11]} Bd5 {[%emt 0:00:52]} 59. Kc1 {[%emt 0:00:33]} Kg8 {[%emt 0:01:06]} 60. Qc8+ {[%emt 0:00:22]} Kf7 {[%emt 0:00:40]} 61. Qc7+ {[%emt 0:00:37]} Kg6 {[%emt 0:00:38]} 62. Qc2 {[%emt 0:00:22]} Kf5 {[%emt 0:00:24]} 63. Qxe4+ {[%emt 0:00:18]} Kxe4 {[%emt 0:00:11]} 64. Kb2 {[%emt 0:00:18]} Kf5 {[%emt 0:01:03]} 65. Ka3 {[%emt 0:00:13]} Bc6 {[%emt 0:00:26]} 66. Bf8 {[%emt 0:00:29]} Kg4 {[%emt 0:00:27]} 67. Bxg7 {[%emt 0:00:09]} 1/2-1/2

[Event "EYCC Open-U16 2019"]
[Site "Bratislava"]
[Date "2019.08.04"]
[Round "3.35"]
[White "Balin, Daniel"]
[Black "Kochavi, Ori"]
[Result "0-1"]
[ECO "D85"]
[WhiteElo "1951"]
[BlackElo "2153"]
[Annotator "NA"]
[PlyCount "58"]
[EventDate "2019.08.02"]
[EventType "swiss"]
[EventCountry "SVK"]
[SourceTitle "playchess.com"]
[Source "ChessBase"]
[SourceQuality "1"]
[TimeControl "40/5400+30:1800+30"]

1. d4 {[%emt 0:00:00]} Nf6 {[%emt 0:00:00]} 2. c4 {[%emt 0:00:48]} g6 {[%emt 0:00:00]} 3. Nc3 {[%emt 0:00:26]} d5 {[%emt 0:00:00]} 4. cxd5 {[%emt 0:01:42]} Nxd5 {[%emt 0:00:28]} 5. e4 {[%emt 0:00:14]} Nxc3 {[%emt 0:00:04]} 6. bxc3 {[%emt 0:00:12]} Bg7 {[%emt 0:00:02]} 7. Bb5+ {[%emt 0:00:34]} c6 {[%emt 0:00:11]} 8. Ba4 {[%emt 0:00:15]} a5 {[%emt 0:00:04]} 9. Qf3 {[%emt 0:14:55]} O-O {[%emt 0:05:45]} 10. Ne2 {[%emt 0:01:38]} b5 {[%emt 0:03:34]} 11. Bc2 {[%emt 0:00:58]} b4 {[%emt 0:08:39]} 12. Bb2 {[%emt 0:09:46]} e5 {[%emt 0:10:50]} 13. Rd1 {[%emt 0:14:45]} Ba6 {[%emt 0:04:18]} 14. d5 {[%emt 0:07:35]} cxd5 {[%emt 0:00:05]} 15. Rxd5 {[%emt 0:01:46]} Qc7 {[%emt 0:00:04]} 16. O-O {[%emt 0:06:02]} Qc4 {[%emt 0:05:48]} 17. Re1 {[%emt 0:16:19]} Qxa2 {[%emt 0:00:26]} 18. Rb1 {[%emt 0:01:35]} Bb7 {[%emt 0:14:31]} 19. Rc5 {[%emt 0:04:30]} Na6 {[%emt 0:20:07]} 20. Nc1 {[%emt 0:02:01]} Qxb1 {[%emt 0:00:27]} 21. Bxb1 {[%emt 0:00:18]} Nxc5 {[%emt 0:00:04]} 22. cxb4 {[%emt 0:01:48]} axb4 {[%emt 0:00:37]} 23. Nb3 {[%emt 0:01:43]} Na4 {[%emt 0:00:58]} 24. Qe2 {[%emt 0:00:49]} Ba6 {[%emt 0:00:15]} 25. Qd2 {[%emt 0:04:13]} Rfd8 {[%emt 0:00:09]} 26. Qc1 {[%emt 0:00:29]} Nxb2 {[%emt 0:00:06]} 27. Bc2 {[%emt 0:00:55]} Nd3 {[%emt 0:00:29]} 28. Bxd3 {[%emt 0:00:53]} Rxd3 {[%emt 0:00:15]} 29. Na5 {[%emt 0:03:39]} Rad8 {[%emt 0:01:10]} 0-1

[Event "EYCC Open-U16 2019"]
[Site "Bratislava"]
[Date "2019.08.04"]
[Round "3.36"]
[White "Beres, Tomas"]
[Black "Zetocha, Adrian"]
[Result "0-1"]
[ECO "B91"]
[WhiteElo "1814"]
[BlackElo "2193"]
[Annotator "NA"]
[PlyCount "48"]
[EventDate "2019.08.02"]
[EventType "swiss"]
[EventCountry "SVK"]
[SourceTitle "playchess.com"]
[Source "ChessBase"]
[SourceQuality "1"]
[TimeControl "40/5400+30:1800+30"]

1. e4 {[%emt 0:00:00]} c5 {[%emt 0:02:22]} 2. Nf3 {[%emt 0:00:00]} d6 {[%emt 0:00:17]} 3. d4 {[%emt 0:00:02]} cxd4 {[%emt 0:00:41]} 4. Nxd4 {[%emt 0:00:05]} Nf6 {[%emt 0:03:00]} 5. Nc3 {[%emt 0:00:10]} a6 {[%emt 0:02:56]} 6. g3 {[%emt 0:03:42]} g6 {[%emt 0:02:09]} 7. Bg2 {[%emt 0:00:09]} Bg7 {[%emt 0:03:37]} 8. O-O {[%emt 0:00:12]} O-O {[%emt 0:00:19]} 9. h3 {[%emt 0:00:14]} Nc6 {[%emt 0:05:01]} 10. Nde2 {[%emt 0:02:24]} Qc7 {[%emt 0:09:39]} 11. Nd5 {[%emt 0:02:15]} Nxd5 {[%emt 0:01:03]} 12. exd5 {[%emt 0:00:07]} Ne5 {[%emt 0:00:29]} 13. c3 {[%emt 0:00:37]} b5 {[%emt 0:04:48]} 14. Nd4 {[%emt 0:01:57]} Bb7 {[%emt 0:01:12]} 15. Re1 {[%emt 0:01:44]} Rac8 {[%emt 0:14:51]} 16. a4 {[%emt 0:06:42]} Qc4 {[%emt 0:04:13]} 17. f4 {[%emt 0:04:18]} Nd3 {[%emt 0:06:03]} 18. Rxe7 {[%emt 0:21:56]} Rfe8 {[%emt 0:00:41]} 19. Qe2 {[%emt 0:06:35]} Bxd4+ {[%emt 0:04:42]} 20. cxd4 {[%emt 0:06:47]} Qxd4+ {[%emt 0:00:16]} 21. Kh2 {[%emt 0:00:11]} Rxe7 {[%emt 0:01:13]} 22. Qxe7 {[%emt 0:00:05]} Rc2 {[%emt 0:03:26]} 23. Be3 {[%emt 0:11:42]} Rxg2+ {[%emt 0:00:41]} 24. Kxg2 {[%emt 0:00:09]} Qxd5+ {[%emt 0:00:09]} 0-1

[Event "EYCC Open-U16 2019"]
[Site "Bratislava"]
[Date "2019.08.04"]
[Round "3.37"]
[White "Heidarsson, Arnar"]
[Black "Niedbala, Bartlomiej"]
[Result "0-1"]
[ECO "A80"]
[WhiteElo "1777"]
[BlackElo "2152"]
[Annotator "NA"]
[PlyCount "34"]
[EventDate "2019.08.02"]
[EventType "swiss"]
[EventCountry "SVK"]
[SourceTitle "playchess.com"]
[Source "ChessBase"]
[SourceQuality "1"]
[TimeControl "40/5400+30:1800+30"]

1. d4 {[%emt 0:00:00]} f5 {[%emt 0:00:00]} 2. Bg5 {[%emt 0:00:00]} g6 {[%emt 0:00:04]} 3. Nc3 {[%emt 0:00:16]} d5 {[%emt 0:00:29]} 4. e3 {[%emt 0:00:53]} Bg7 {[%emt 0:07:43]} 5. h4 {[%emt 0:01:27]} c6 {[%emt 0:01:22]} 6. Qf3 {[%emt 0:04:04]} Nd7 {[%emt 0:11:28]} 7. O-O-O {[%emt 0:08:52]} Nh6 {[%emt 0:12:41]} 8. h5 {[%emt 0:07:34]} Nf7 {[%emt 0:01:31]} 9. Bf4 {[%emt 0:08:34]} g5 {[%emt 0:03:36]} 10. Bh2 {[%emt 0:01:06]} e5 {[%emt 0:06:55]} 11. Qxf5 {[%emt 0:10:56]} exd4 {[%emt 0:08:34]} 12. Qe6+ {[%emt 0:00:25]} Kf8 {[%emt 0:01:01]} 13. Bd6+ {[%emt 0:01:59]} Kg8 {[%emt 0:01:11]} 14. Be7 {[%emt 0:08:53]} Qe8 {[%emt 0:02:07]} 15. h6 {[%emt 0:01:45]} Bf8 {[%emt 0:16:45]} 16. Bd3 {[%emt 0:03:58]} Nde5 {[%emt 0:06:41]} 17. Qf6 {[%emt 0:00:45]} Qxe7 {[%emt 0:01:44]} 0-1

[Event "EYCC Open-U16 2019"]
[Site "Bratislava"]
[Date "2019.08.04"]
[Round "3.38"]
[White "Mendis, Vidura"]
[Black "Melaa, Sondre"]
[Result "0-1"]
[ECO "C55"]
[WhiteElo "1472"]
[BlackElo "2118"]
[Annotator "NA"]
[PlyCount "68"]
[EventDate "2019.08.02"]
[EventType "swiss"]
[EventCountry "SVK"]
[SourceTitle "playchess.com"]
[Source "ChessBase"]
[SourceQuality "1"]
[TimeControl "40/5400+30:1800+30"]

1. e4 {[%emt 0:00:00]} e5 {[%emt 0:00:00]} 2. Nf3 {[%emt 0:00:00]} Nc6 {[%emt 0:00:13]} 3. d4 {[%emt 0:00:19]} exd4 {[%emt 0:00:30]} 4. Bc4 {[%emt 0:00:41]} Nf6 {[%emt 0:00:17]} 5. e5 {[%emt 0:00:36]} d5 {[%emt 0:00:30]} 6. Bb5 {[%emt 0:00:40]} Ne4 {[%emt 0:00:12]} 7. Nxd4 {[%emt 0:00:09]} Bc5 {[%emt 0:00:35]} 8. Be3 {[%emt 0:00:22]} O-O {[%emt 0:01:12]} 9. Nxc6 {[%emt 0:00:50]} bxc6 {[%emt 0:02:05]} 10. Bxc5 {[%emt 0:01:25]} Nxc5 {[%emt 0:01:10]} 11. Bxc6 {[%emt 0:01:36]} Rb8 {[%emt 0:00:54]} 12. Qxd5 {[%emt 0:03:53]} Qe7 {[%emt 0:00:12]} 13. O-O {[%emt 0:11:32]} Rxb2 {[%emt 0:12:41]} 14. c4 {[%emt 0:18:41]} Rd8 {[%emt 0:19:05]} 15. Qf3 {[%emt 0:01:26]} Rd3 {[%emt 0:01:14]} 16. Qf4 {[%emt 0:05:17]} Re2 {[%emt 0:01:26]} 17. a4 {[%emt 0:20:41]} Rxe5 {[%emt 0:01:54]} 18. Nd2 {[%emt 0:01:16]} g5 {[%emt 0:02:29]} 19. Qxe5 {[%emt 0:08:55]} Qxe5 {[%emt 0:00:09]} 20. Rae1 {[%emt 0:01:58]} Qf6 {[%emt 0:01:32]} 21. Re8+ {[%emt 0:06:00]} Kg7 {[%emt 0:00:13]} 22. Rxc8 {[%emt 0:05:14]} Qxc6 {[%emt 0:01:19]} 23. Nf3 {[%emt 0:00:11]} Qf6 {[%emt 0:01:46]} 24. Rxc7 {[%emt 0:01:34]} Ne6 {[%emt 0:00:07]} 25. Rc6 {[%emt 0:02:35]} Rxf3 {[%emt 0:00:28]} 26. gxf3 {[%emt 0:00:42]} Qxf3 {[%emt 0:00:07]} 27. Rxe6 {[%emt 0:00:06]} fxe6 {[%emt 0:00:14]} 28. Rc1 {[%emt 0:00:33]} Qf4 {[%emt 0:00:38]} 29. Rc3 {[%emt 0:00:30]} Qd2 {[%emt 0:00:18]} 30. Re3 {[%emt 0:00:22]} Qc1+ {[%emt 0:00:08]} 31. Kg2 {[%emt 0:00:07]} Qxc4 {[%emt 0:00:06]} 32. a5 {[%emt 0:00:08]} Qd5+ {[%emt 0:00:14]} 33. Kg1 {[%emt 0:00:12]} Kf6 {[%emt 0:00:32]} 34. a6 {[%emt 0:00:14]} Qc4 {[%emt 0:00:19]} 0-1

[Event "EYCC Open-U16 2019"]
[Site "Bratislava"]
[Date "2019.08.04"]
[Round "3.39"]
[White "Pobor, Milo"]
[Black "Keprt, Tomas"]
[Result "0-1"]
[ECO "B31"]
[WhiteElo "2067"]
[BlackElo "1438"]
[Annotator "NA"]
[PlyCount "68"]
[EventDate "2019.08.02"]
[EventType "swiss"]
[EventCountry "SVK"]
[SourceTitle "playchess.com"]
[Source "ChessBase"]
[SourceQuality "1"]
[TimeControl "40/5400+30:1800+30"]

1. e4 {[%emt 0:00:00]} c5 {[%emt 0:00:00]} 2. Nf3 {[%emt 0:00:00]} Nc6 {[%emt 0:00:00]} 3. Bb5 {[%emt 0:00:00]} g6 {[%emt 0:00:06]} 4. O-O {[%emt 0:00:00]} Bg7 {[%emt 0:00:07]} 5. Re1 {[%emt 0:00:00]} Nf6 {[%emt 0:00:40]} 6. e5 {[%emt 0:00:24]} Nd5 {[%emt 0:00:17]} 7. Nc3 {[%emt 0:00:06]} Nc7 {[%emt 0:03:39]} 8. Bxc6 {[%emt 0:00:34]} bxc6 {[%emt 0:07:19]} 9. d3 {[%emt 0:07:22]} O-O {[%emt 0:02:02]} 10. Be3 {[%emt 0:01:19]} d6 {[%emt 0:03:08]} 11. exd6 {[%emt 0:09:12]} exd6 {[%emt 0:01:31]} 12. Bg5 {[%emt 0:03:22]} Bf6 {[%emt 0:04:12]} 13. Bxf6 {[%emt 0:07:59]} Qxf6 {[%emt 0:00:12]} 14. Ne4 {[%emt 0:00:29]} Qd8 {[%emt 0:00:15]} 15. d4 {[%emt 0:02:25]} Ne6 {[%emt 0:06:33]} 16. Qd2 {[%emt 0:25:29]} Rb8 {[%emt 0:19:08]} 17. dxc5 {[%emt 0:05:44]} d5 {[%emt 0:00:43]} 18. Ng3 {[%emt 0:07:14]} Rxb2 {[%emt 0:02:17]} 19. Ne5 {[%emt 0:03:37]} Qc7 {[%emt 0:03:02]} 20. Qc3 {[%emt 0:07:08]} Rb5 {[%emt 0:01:29]} 21. Ng4 {[%emt 0:01:07]} d4 {[%emt 0:09:49]} 22. Nf6+ {[%emt 0:03:11]} Kg7 {[%emt 0:01:40]} 23. Qf3 {[%emt 0:01:44]} Rxc5 {[%emt 0:08:07]} 24. Nge4 {[%emt 0:02:54]} Rf5 {[%emt 0:01:07]} 25. Qh3 {[%emt 0:01:19]} Rxf6 {[%emt 0:04:59]} 26. Nxf6 {[%emt 0:00:02]} Kxf6 {[%emt 0:00:09]} 27. Qxh7 {[%emt 0:00:52]} Qf4 {[%emt 0:01:57]} 28. Qh3 {[%emt 0:00:19]} Ng5 {[%emt 0:00:47]} 29. Qa3 {[%emt 0:01:08]} Kg7 {[%emt 0:02:21]} 30. Qe7 {[%emt 0:00:47]} Be6 {[%emt 0:01:20]} 31. Qc5 {[%emt 0:00:22]} Bd5 {[%emt 0:02:11]} 32. Rad1 {[%emt 0:01:29]} Ne6 {[%emt 0:02:00]} 33. Qxa7 {[%emt 0:00:12]} Rh8 {[%emt 0:00:57]} 34. h3 {[%emt 0:01:17]} Qg5 {[%emt 0:00:27]} 0-1

[Event "EYCC Open-U16 2019"]
[Site "Bratislava"]
[Date "2019.08.04"]
[Round "3.40"]
[White "Vitenberg, Noam Aviv"]
[Black "Ghachava, Akaki"]
[Result "0-1"]
[ECO "E38"]
[WhiteElo "2300"]
[BlackElo "1777"]
[Annotator "NA"]
[PlyCount "92"]
[EventDate "2019.08.02"]
[EventType "swiss"]
[EventCountry "SVK"]
[SourceTitle "playchess.com"]
[Source "ChessBase"]
[SourceQuality "1"]
[TimeControl "40/5400+30:1800+30"]

1. d4 {[%emt 0:00:00]} Nf6 {[%emt 0:00:00]} 2. c4 {[%emt 0:00:00]} e6 {[%emt 0:00:00]} 3. Nc3 {[%emt 0:00:00]} Bb4 {[%emt 0:00:19]} 4. Qc2 {[%emt 0:00:12]} c5 {[%emt 0:00:14]} 5. dxc5 {[%emt 0:00:11]} Na6 {[%emt 0:02:09]} 6. a3 {[%emt 0:01:21]} Bxc3+ {[%emt 0:01:13]} 7. Qxc3 {[%emt 0:00:08]} Nxc5 {[%emt 0:01:21]} 8. b4 {[%emt 0:01:48]} Nce4 {[%emt 0:10:30]} 9. Qc2 {[%emt 0:06:35]} d5 {[%emt 0:03:59]} 10. c5 {[%emt 0:02:36]} Nxf2 {[%emt 0:11:16]} 11. Kxf2 {[%emt 0:15:12]} Ne4+ {[%emt 0:00:24]} 12. Ke1 {[%emt 0:00:31]} Qf6 {[%emt 0:00:14]} 13. e3 {[%emt 0:04:26]} Qxa1 {[%emt 0:00:12]} 14. Bb5+ {[%emt 0:00:33]} Bd7 {[%emt 0:07:31]} 15. Bxd7+ {[%emt 0:01:05]} Kxd7 {[%emt 0:00:07]} 16. Ne2 {[%emt 0:00:50]} Ke7 {[%emt 0:02:22]} 17. Rf1 {[%emt 0:04:35]} Rhc8 {[%emt 0:06:18]} 18. Qa4 {[%emt 0:06:25]} Nc3 {[%emt 0:06:15]} 19. Qc2 {[%emt 0:02:13]} Ne4 {[%emt 0:04:45]} 20. Qa4 {[%emt 0:08:45]} Qe5 {[%emt 0:00:11]} 21. Qb5 {[%emt 0:08:12]} Qc7 {[%emt 0:01:22]} 22. Bb2 {[%emt 0:01:21]} f6 {[%emt 0:01:53]} 23. Rf4 {[%emt 0:09:19]} a5 {[%emt 0:01:12]} 24. Nd4 {[%emt 0:09:21]} axb4 {[%emt 0:08:02]} 25. axb4 {[%emt 0:02:31]} Kf7 {[%emt 0:04:08]} 26. Qe2 {[%emt 0:02:24]} e5 {[%emt 0:04:25]} 27. Nb5 {[%emt 0:01:06]} Qe7 {[%emt 0:02:47]} 28. Rh4 {[%emt 0:07:56]} Kg8 {[%emt 0:01:20]} 29. Qd3 {[%emt 0:00:15]} Rd8 {[%emt 0:02:28]} 30. Nd6 {[%emt 0:03:46]} Nxd6 {[%emt 0:02:59]} 31. Qxh7+ {[%emt 0:00:12]} Kf7 {[%emt 0:00:34]} 32. cxd6 {[%emt 0:00:16]} Rxd6 {[%emt 0:01:19]} 33. Rg4 {[%emt 0:00:49]} Qf8 {[%emt 0:03:49]} 34. h4 {[%emt 0:00:21]} Qh8 {[%emt 0:05:02]} 35. Qf5 {[%emt 0:00:10]} Qh6 {[%emt 0:00:56]} 36. Kf2 {[%emt 0:00:16]} d4 {[%emt 0:01:39]} 37. Bc1 {[%emt 0:00:19]} d3 {[%emt 0:00:49]} 38. Qe4 {[%emt 0:00:43]} d2 {[%emt 0:03:15]} 39. Qxb7+ {[%emt 0:00:00]} Ke6 {[%emt 0:00:00]} 40. Bxd2 {[%emt 0:00:00]} Rxd2+ {[%emt 0:00:00]} 41. Kf3 {[%emt 0:10:27]} Rad8 {[%emt 0:07:31]} 42. Rxg7 {[%emt 0:06:40]} Qxe3+ {[%emt 0:00:10]} 43. Kg4 {[%emt 0:00:25]} R2d4+ {[%emt 0:00:25]} 44. Kh5 {[%emt 0:00:35]} Rh8+ {[%emt 0:00:20]} 45. Rh7 {[%emt 0:00:10]} Qe2+ {[%emt 0:00:08]} 46. Kh6 {[%emt 0:00:34]} Rxh4+ {[%emt 0:00:05]} 0-1

[Event "EYCC Open-U16 2019"]
[Site "Bratislava"]
[Date "2019.08.04"]
[Round "3.41"]
[White "Jazdanovs, Aleksandrs"]
[Black "Darmogray, Makar"]
[Result "1-0"]
[ECO "C88"]
[WhiteElo "2238"]
[BlackElo "2004"]
[Annotator "NA"]
[PlyCount "67"]
[EventDate "2019.08.02"]
[EventType "swiss"]
[EventCountry "SVK"]
[SourceTitle "playchess.com"]
[Source "ChessBase"]
[SourceQuality "1"]
[TimeControl "40/5400+30:1800+30"]

1. e4 {[%emt 0:03:23]} e5 {[%emt 0:00:00]} 2. Nf3 {[%emt 0:01:08]} Nc6 {[%emt 0:00:00]} 3. Bb5 {[%emt 0:00:27]} a6 {[%emt 0:00:18]} 4. Ba4 {[%emt 0:00:07]} Nf6 {[%emt 0:00:13]} 5. O-O {[%emt 0:00:06]} Be7 {[%emt 0:00:18]} 6. Re1 {[%emt 0:00:06]} b5 {[%emt 0:00:15]} 7. Bb3 {[%emt 0:00:05]} d6 {[%emt 0:00:34]} 8. a4 {[%emt 0:01:26]} b4 {[%emt 0:01:08]} 9. d4 {[%emt 0:00:41]} Bg4 {[%emt 0:00:59]} 10. dxe5 {[%emt 0:00:26]} Nxe5 {[%emt 0:00:07]} 11. Nbd2 {[%emt 0:00:12]} Qc8 {[%emt 0:00:22]} 12. h3 {[%emt 0:01:05]} Bh5 {[%emt 0:00:44]} 13. Qe2 {[%emt 0:01:06]} O-O {[%emt 0:02:35]} 14. Qe3 {[%emt 0:02:17]} Nxf3+ {[%emt 0:02:42]} 15. Nxf3 {[%emt 0:00:08]} Re8 {[%emt 0:00:28]} 16. Bd2 {[%emt 0:02:24]} Bf8 {[%emt 0:09:30]} 17. Qf4 {[%emt 0:00:27]} Qb7 {[%emt 0:20:36]} 18. Qh4 {[%emt 0:10:54]} h6 {[%emt 0:19:36]} 19. e5 {[%emt 0:02:05]} Bxf3 {[%emt 0:15:31]} 20. exf6 {[%emt 0:00:07]} Be4 {[%emt 0:06:32]} 21. fxg7 {[%emt 0:01:55]} Bxg7 {[%emt 0:00:17]} 22. Re3 {[%emt 0:00:43]} Bg6 {[%emt 0:05:43]} 23. Rae1 {[%emt 0:04:09]} Qc6 {[%emt 0:00:23]} 24. Bd5 {[%emt 0:00:30]} Qxd5 {[%emt 0:00:27]} 25. Rxe8+ {[%emt 0:00:06]} Rxe8 {[%emt 0:00:04]} 26. Rxe8+ {[%emt 0:00:04]} Kh7 {[%emt 0:00:07]} 27. Qxb4 {[%emt 0:00:21]} c5 {[%emt 0:03:13]} 28. Qf4 {[%emt 0:01:06]} Qa2 {[%emt 0:00:48]} 29. Bc3 {[%emt 0:00:59]} Qb1+ {[%emt 0:01:42]} 30. Kh2 {[%emt 0:00:05]} Qxc2 {[%emt 0:00:15]} 31. Bxg7 {[%emt 0:00:07]} Kxg7 {[%emt 0:00:04]} 32. Qxd6 {[%emt 0:00:08]} Qxf2 {[%emt 0:01:25]} 33. Qe5+ {[%emt 0:00:16]} Qf6 {[%emt 0:00:09]} 34. Rg8+ {[%emt 0:00:04]} 1-0